Cogmind - Beta 13 @@@ ROGUE MODE // 2024.04.06 @ 00:34:46 Player: SovietPaperclip Result: Destroyed by P-70 Sage with High-powered Shock Rifle Performance ------------- Evolutions (5) 2500 Regions Visited (20) 4000 Robots Destroyed (134) 670 Value Destroyed (3306) 3306 Prototype IDs (34) 680 Alien Tech Used (3) 600 Bonus (928) 928 TOTAL SCORE: 12684 Bonus ------- High Alert Combat Kills 141 Follower Combat Kills 208 Met Data Miner 300 Met Zhirov 300 Friendly Fire -21 Cogmind --------- Core Integrity 0/1000 Matter 125/300 Energy 100/100 System Corruption 5% Temperature Cool (6) Movement Flying (40) Location -4/Proximity Caves Parts ------- > --- POWER (2) -------- (None) > --- PROPULSION (6) --- Biomechanical Wings > --- UTILITY (7) ------ Advanced Signal Interpreter Hacking Suite Hacking Suite Hacking Suite System Shield > --- WEAPON (2) ------- (None) > --- INVENTORY (5) ---- Heavy Antimatter Reactor Large Storage Unit Advanced Hacking Suite Heavy Gauss Cannon Peak State ------------ > --- POWER ------------ Light Angular Momentum Engine > --- PROPULSION ------- Improved Cesium-ion Thruster Biomechanical Wings Biomechanical Wings Biomechanical Wings Biomechanical Wings > --- UTILITY ---------- Large Storage Unit Advanced Weight Redist. System Experimental Sensor Array Improved Signal Interpreter Hacking Suite System Shield > --- WEAPON ----------- Long-range Missile Launcher Power Maul > --- INVENTORY -------- Light Fission Core Improved Cesium-ion Thruster Improved Cesium-ion Thruster Improved Cesium-ion Thruster Transmission Jammer ECM Suite Cloaking Device Improved Utility Shielding Improved Shield Generator Hacking Suite Hacking Suite Hacking Suite Hacking Suite System Restoration Module [Rating: 70] Favorites ----------- Power Light Deuterium Engine Engine Light Deuterium Engine Power Core Light Nuclear Core Reactor Heavy Antimatter Reactor Propulsion Improved Treads Treads Improved Treads Leg Aluminum Leg Wheel Armored Wheel Hover Unit Cooled Airjet Flight Unit Improved Cesium-ion Thruster Utility Large Storage Unit Device Advanced Weight Redist. System Storage Large Storage Unit Processor Improved Signal Interpreter Hackware Hacking Suite Protection Medium Armor Plating Weapon Heavy Assault Rifle Energy Cannon Advanced Beam Cannon Ballistic Gun Heavy Assault Rifle Ballistic Cannon Gauss Cannon Launcher Proton Missile Launcher Impact Weapon Power Maul Slashing Weapon Ripper Build | -11 -10 -10 -9 -9 -8 -7 -7 -7 -7 -6 -6 -6 -6 -6 -5 -5 -5 -5 -5 -4 ------- Run | Yrd Mat Min Mat Min Mat Fac Low Low Zio Pro Fac Low Low Dat Pro Fac Upp Upp Zhi Pro Slots Evolved 10 | . . . 2 . 2 2 . . . . 2 . . . . 2 . . . . Power 1 | . . . . . . . . . . . 1 . . . . . . . . . Propulsion 4 | . . . 1 . 1 1 . . . . . . . . . 1 . . . . Utility 5 | . . . 1 . 1 1 . . . . 1 . . . . 1 . . . . Weapon . | . . . . . . . . . . . . . . . . . . . . . Parts Attached 167 | 6 9 5 26 4 12 48 2 2 2 . 17 8 2 . . 15 1 1 4 3 Power 25 | 1 1 . 5 . 1 6 . . . . 2 2 1 . . 5 . . 1 . Engine 17 | 1 1 . 4 . 1 3 . . . . 1 1 1 . . 4 . . . . Core 7 | . . . 1 . . 3 . . . . 1 1 . . . 1 . . . . Reactor 1 | . . . . . . . . . . . . . . . . . . . 1 . Propulsion 41 | 2 . . 6 . 2 18 . 2 . . 6 2 1 . . 1 . . . 1 Treads 5 | . . . 3 . 2 . . . . . . . . . . . . . . . Leg 4 | 2 . . 2 . . . . . . . . . . . . . . . . . Wheel 1 | . . . 1 . . . . . . . . . . . . . . . . . Hover 10 | . . . . . . 10 . . . . . . . . . . . . . . Flight 21 | . . . . . . 8 . 2 . . 6 2 1 . . 1 . . . 1 Utility 53 | 1 4 . 8 2 4 12 1 . 1 . 7 1 . . . 6 1 . 3 2 Device 17 | . . . . . 1 5 . . . . 5 . . . . 3 1 . 1 1 Storage 9 | 1 3 . 1 . 1 1 . . . . . . . . . . . . 2 . Processor 4 | . 1 . . . . 1 . . 1 . . . . . . . . . . 1 Hackware 7 | . . . . . . 2 . . . . 2 . . . . 3 . . . . Protection 16 | . . . 7 2 2 3 1 . . . . 1 . . . . . . . . Artifact . | . . . . . . . . . . . . . . . . . . . . . Weapon 48 | 2 4 5 7 2 5 12 1 . 1 . 2 3 . . . 3 . 1 . . Energy Gun . | . . . . . . . . . . . . . . . . . . . . . Energy Cannon 4 | . . . 1 . 3 . . . . . . . . . . . . . . . Ballistic Gun 16 | 2 3 2 6 1 . 2 . . . . . . . . . . . . . . Ballistic Cannon 3 | . . . . . . 2 . . . . . . . . . . . 1 . . Launcher 16 | . 1 3 . 1 1 5 1 . . . 1 2 . . . 1 . . . . Special Weapon . | . . . . . . . . . . . . . . . . . . . . . Impact Weapon 5 | . . . . . . 3 . . 1 . 1 . . . . . . . . . Slashing Weapon 4 | . . . . . 1 . . . . . . 1 . . . 2 . . . . Piercing Weapon . | . . . . . . . . . . . . . . . . . . . . . Special Melee Weapon . | . . . . . . . . . . . . . . . . . . . . . Unidentified Prototypes 18 | . . . 4 . 1 5 . . . . 2 . . . . . . . 6 . Corrupted Parts 1 | . . . . . . 1 . . . . . . . . . . . . . . System Corruption 5 | . . . . . . 5 . . . . . . . . . . . . . . Parts Lost 59 | . 1 2 5 2 3 19 . . . . 5 5 2 . 2 9 2 . . 2 Power 13 | . 1 . 1 . . 4 . . . . 2 1 1 . 1 2 . . . . Propulsion 17 | . . . 2 . 2 7 . . . . 1 1 1 . . 3 . . . . Utility 20 | . . 1 . 2 1 6 . . . . 2 1 . . 1 2 2 . . 2 Weapon 9 | . . 1 2 . . 2 . . . . . 2 . . . 2 . . . . Highest Loss Streak 7 | . 1 1 1 1 1 7 . . . . 4 4 2 . 2 6 1 . . 2 To Critical Strikes 2 | . . . 1 . . . . . . . . 1 . . . . . . . . Average Slot Usage (%) 83 | . 91 91 82 97 90 87 92 88 84 92 83 85 84 86 84 64 39 35 45 38 Engine 5 | . 14 14 4 11 9 2 . . . . 4 5 4 6 6 2 . . . . Core 2 | . . . 3 . . 3 7 7 7 7 2 6 6 6 4 . . . . . Treads 9 | . . . 8 33 31 . . . . . . . . . . . . . . . Leg 4 | . 28 28 11 . . . . . . . . . . . . . . . . . Hover 4 | . . . . . . 23 . . . . . . . . . . . . . . Flight 9 | . . . . . . 12 38 38 38 38 32 32 33 33 33 21 5 5 5 5 Device 4 | . . . . . 5 8 10 7 7 7 12 6 6 6 6 4 4 . . . Storage 8 | . 14 14 11 11 9 7 7 7 7 7 6 6 6 6 6 4 . . 4 . Processor 2 | . 6 5 . . . 3 . . 1 7 6 6 6 6 6 5 5 5 5 8 Hackware 6 | . . . . . . 8 15 15 15 15 11 15 13 13 13 15 23 23 23 23 Protection 9 | . . . 18 19 18 5 4 7 5 . . 3 6 6 6 4 . . . . Energy Cannon 2 | . . . . . 13 . . . . . . . . . . . . . . . Ballistic Gun 7 | . 27 26 21 21 . . . . . . . . . . . . . . . . Impact Weapon 1 | . . . . . . 3 . . . 7 5 . . . . . . . . . Slashing Weapon 1 | . . . . . 3 3 . . . . . . . . . . . . . . Naked Turns . | . . . . . . . . . . . . . . . . . . . . . Heaviest Build 70 | 12 19 19 48 49 70 42 35 35 29 29 35 38 39 39 39 38 4 . 38 2 Greatest Support 86 | 20 20 20 66 66 86 41 36 37 37 37 39 39 39 39 39 30 6 6 6 6 Greatest Overweight (x) 8 | . . . 3 . 1 8 . . . . . 1 . . . 2 . . 6 . Average Overweight (x) . | . . . 1 . . . . . . . . . . . . . . . 3 . Largest Inventory Capacity 25 | 8 25 10 15 15 20 20 15 15 15 15 15 15 15 15 15 15 5 5 15 15 Average Capacity 14 | 7 9 10 13 15 18 15 15 15 15 15 15 15 15 15 15 13 5 5 14 5 Most Carried 17 | 3 8 9 15 15 17 16 15 15 15 15 15 15 13 12 13 12 5 5 5 5 Average Carried 11 | . 5 7 10 14 15 11 14 14 14 15 13 12 12 12 12 9 4 4 4 4 Final Capacity 20 | 8 10 10 15 15 20 15 15 15 15 15 15 15 15 15 15 5 5 5 15 5 Final Carried 16 | 1 7 9 15 14 16 13 15 14 15 15 15 12 12 12 13 5 4 5 4 4 Class Distribution -------------------- 62% | Mutant 19% | Hacker-Sprinter 13% | Hacker-Mutant Dominant Class ---------------- Mutant | -10/Materials Mutant | -10/Mines Mutant | -9/Materials Mutant | -9/Mines Mutant | -8/Materials Mutant | -7/Factory Hacker-Sprinter | -7/Lower Caves Hacker-Sprinter | -7/Lower Caves Hacker-Sprinter | -7/Zion Hacker-Sprinter | -6/Proximity Caves Hacker-Sprinter | -6/Factory Hacker-Sprinter | -6/Lower Caves Hacker-Sprinter | -6/Lower Caves Hacker-Sprinter | -6/Data Miner Hacker-Sprinter | -5/Proximity Caves Hacker-Mutant | -5/Factory Hacker-Mutant | -5/Upper Caves Hacker-Mutant | -5/Upper Caves Hacker-Mutant | -5/Zhirov Hacker-Mutant | -4/Proximity Caves Resources | -11 -10 -10 -9 -9 -8 -7 -7 -7 -7 -6 -6 -6 -6 -6 -5 -5 -5 -5 -5 -4 ----------- Run | Yrd Mat Min Mat Min Mat Fac Low Low Zio Pro Fac Low Low Dat Pro Fac Upp Upp Zhi Pro Matter Collected 3218 | 214 226 263 859 352 115 699 27 49 20 . 48 66 136 . . . 54 . . 90 Remotely . | . . . . . . . . . . . . . . . . . . . . . Salvage Created 4494 | . 332 154 1038 319 1115 1008 111 . . 62 176 87 . . . 92 . . . . Parts 269 | . 24 24 70 21 62 48 4 . . . 2 7 . . . 7 . . . . Haulers Intercepted 10 | . . . 5 . 4 1 . . . . . . . . . . . . . . Recyclers Shooed 7 | . 1 1 2 1 . 1 . . . . . . . . . 1 . . . . Parts Field Recycled . | . . . . . . . . . . . . . . . . . . . . . Retrieved Matter . | . . . . . . . . . . . . . . . . . . . . . Parts Self-Destructed 14 | . . . . . . . 1 2 . . . 5 . . . . . 6 . . Prevented 4 | . . . . . . . 1 1 . . . . 2 . . . . . . . Kills | -11 -10 -10 -9 -9 -8 -7 -7 -7 -7 -6 -6 -6 -6 -6 -5 -5 -5 -5 -5 -4 ------- Run | Yrd Mat Min Mat Min Mat Fac Low Low Zio Pro Fac Low Low Dat Pro Fac Upp Upp Zhi Pro Combat Hostiles Destroyed 89 | . 6 8 17 11 20 17 1 . . 1 2 5 . . . 1 . . . . Melee 12 | . . . . . 9 3 . . . . . . . . . . . . . . Guns 32 | . 4 3 17 7 . 1 . . . . . . . . . . . . . . Cannons 12 | . . . . . 10 2 . . . . . . . . . . . . . . AOE 25 | . 2 5 . 4 . 7 1 . . . . 5 . . . 1 . . . . Classes Destroyed 15 | . 5 1 4 1 1 2 1 . . . . . . . . . . . . . Worker 14 | . . 4 . . . 6 . . . . 4 . . . . . . . . . Builder 6 | . 1 . 2 . 1 2 . . . . . . . . . . . . . . Tunneler 1 | . . . 1 . . . . . . . . . . . . . . . . . Hauler 10 | . . . 5 . 4 1 . . . . . . . . . . . . . . Recycler 6 | . 1 . 1 1 . 3 . . . . . . . . . . . . . . Operator 5 | . . . 1 . . 4 . . . . . . . . . . . . . . Watcher 7 | . 2 . 2 . 1 1 . . . . . . . . . 1 . . . . Swarmer 34 | . 3 6 7 3 4 7 1 . . . . 3 . . . . . . . . Grunt 28 | . 3 2 4 4 8 4 . . . . 1 2 . . . . . . . . Brawler 1 | . . . . . . 1 . . . . . . . . . . . . . . Duelist 1 | . . . . . 1 . . . . . . . . . . . . . . . Sentry 17 | . . . 6 . 7 2 . . . 1 1 . . . . . . . . . Programmer 4 | . . . . . . 3 . . . . . . . . . 1 . . . . Samaritan 2 | . . . . . . . 2 . . . . . . . . . . . . . Assembled 4 | . . . . 4 . . . . . . . . . . . . . . . . Best Kill Streak 6 | . 3 5 4 3 3 6 1 . . 1 2 3 . . . 1 . . . . Combat Bots Only 5 | . 3 5 4 3 3 4 1 . . 1 1 3 . . . 1 . . . . Max Kills in Single Turn 2 | . 1 2 2 2 1 2 2 . . 1 1 2 . . . 1 . . . . Gunslinging . | . . . . . . . . . . . . . . . . . . . . . Exploded 2 | . 1 2 . 2 . 2 1 . . . . 2 . . . 1 . . . . Melee 1 | . . . . . 1 1 . . . . . . . . . . . . . . Uniques/NPCs Destroyed . | . . . . . . . . . . . . . . . . . . . . . Combat | -11 -10 -10 -9 -9 -8 -7 -7 -7 -7 -6 -6 -6 -6 -6 -5 -5 -5 -5 -5 -4 -------- Run | Yrd Mat Min Mat Min Mat Fac Low Low Zio Pro Fac Low Low Dat Pro Fac Upp Upp Zhi Pro Hostile Shots Fired 936 | . 37 24 79 29 83 283 19 9 . 18 143 23 29 . 16 86 24 5 . 29 Missed 393 | . 9 9 24 11 23 124 13 6 . 9 64 7 13 . 11 41 13 4 . 12 Damage Taken 7490 | . 313 188 651 298 854 1972 114 28 . 71 730 317 238 . 97 1049 150 20 . 400 Core 2199 | . 99 20 61 23 54 359 61 . . 22 272 99 102 . 41 567 63 20 . 336 Absorbed by Shields 40 | . . . . . . . . . . . . . . . . . 40 . . . Redirected to Shielding 210 | . . . . . . 114 9 10 . . . . . . 26 51 . . . . Core Remaining (%) 66 | 100 . 52 . 79 90 . . . . 36 . . . . 39 . . . . . Volleys Fired 263 | . 31 13 89 31 58 26 2 . . . . 6 . . . 6 . 1 . . Largest 2 | . 2 2 2 2 2 2 1 . . . . 1 . . . 1 . 1 . . Hottest 136 | . 53 53 46 56 136 76 39 . . . . 43 . . . 46 . 57 . . Shots Fired 458 | . 62 26 172 62 90 31 2 1 . . . 6 . . . 5 . 1 . . Gun 310 | . 59 18 172 51 . 10 . . . . . . . . . . . . . . Cannon 97 | . . . . . 90 6 . . . . . . . . . . . 1 . . Launcher 51 | . 3 8 . 11 . 15 2 1 . . . 6 . . . 5 . . . . Special . | . . . . . . . . . . . . . . . . . . . . . Kinetic 317 | . 59 18 172 51 . 16 . . . . . . . . . . . 1 . . Thermal 90 | . . . . . 90 . . . . . . . . . . . . . . . Explosive 42 | . 3 8 . 11 . 14 . . . . . 6 . . . . . . . . Electromagnetic 9 | . . . . . . 1 2 1 . . . . . . . 5 . . . . Robot Hit Streak 14 | . 8 4 14 5 9 14 . . . . . 6 . . . 7 . . . . Robot Miss Streak 5 | . 5 4 4 3 5 3 2 3 . . . . . . . 1 . . . . Penetration Max . | . . . . . . . . . . . . . . . . . . . . . Secondary Targets 2 | . . . 1 1 . . . . . . . . . . . . . . . . Max Gunslinging Chain 1 | . . . 1 1 . . . . . . . . . . . . . . . . Shots Hit Robots 344 | . 28 10 114 28 79 58 . . . 4 13 6 . . . 4 . . . . Core Hits 191 | . 13 16 41 18 33 44 5 . . . . 17 . . . 4 . . . . Critical Kills 2 | . . . . . 1 1 . . . . . . . . . . . . . . Critical Parts Destroyed 11 | . . 1 2 . . 5 . . . 1 2 . . . . . . . . . Critical Strikes 16 | . . 1 2 . 1 8 . . . 1 3 . . . . . . . . . Meltdown 1 | . . . . . 1 . . . . . . . . . . . . . . . Destroy 3 | . . 1 2 . . . . . . . . . . . . . . . . . Smash 10 | . . . . . . 6 . . . 1 3 . . . . . . . . . Sever 2 | . . . . . . 2 . . . . . . . . . . . . . . Melee Attacks 149 | . . . . . 27 79 . . . 4 37 . . . . 2 . . . . Impact 69 | . . . . . . 28 . . . 4 37 . . . . . . . . . Slashing 80 | . . . . . 27 51 . . . . . . . . . 2 . . . . Piercing . | . . . . . . . . . . . . . . . . . . . . . Sneak Attacks 16 | . . . . . 1 10 . . . . 4 . . . . 1 . . . . Combat Hostiles . | . . . . . . . . . . . . . . . . . . . . . Follow-up Attacks . | . . . . . . . . . . . . . . . . . . . . . Damage Inflicted 11123 | . 522 519 1756 611 1996 3072 98 . . 158 729 1359 . . . 303 . . . . Guns 3002 | . 444 168 1756 396 . 238 . . . . . . . . . . . . . . Cannons 1408 | . . . . . 1267 141 . . . . . . . . . . . . . . Explosions 3195 | . 78 351 . 215 . 884 98 . . . . 1359 . . . 210 . . . . Melee 3512 | . . . . . 723 1809 . . . 158 729 . . . . 93 . . . . Ramming 6 | . . . . . 6 . . . . . . . . . . . . . . . Kinetic 3143 | . 444 168 1756 396 . 379 . . . . . . . . . . . . . . Thermal 1267 | . . . . . 1267 . . . . . . . . . . . . . . . Explosive 3003 | . 78 351 . 215 . 859 . . . . . 1359 . . . 141 . . . . Electromagnetic 192 | . . . . . . 25 98 . . . . . . . . 69 . . . . Impact 1392 | . . . . . . 505 . . . 158 729 . . . . . . . . . Slashing 2120 | . . . . . 723 1304 . . . . . . . . . 93 . . . . Piercing . | . . . . . . . . . . . . . . . . . . . . . Highest Corruption 15 | . . . . . . 15 15 15 15 . . . 2 2 2 5 5 5 5 5 Average Corruption 6 | . . . . . . 7 15 15 15 . . . 1 2 2 3 5 5 5 5 Corruption Purged 4 | . . . . . . 2 . . . . . . . . . 2 . . . . Corruption Blocked . | . . . . . . . . . . . . . . . . . . . . . Effects 85 | . . . . . . 45 4 5 1 . . . 1 1 1 4 3 3 14 3 Message Errors 25 | . . . . . . 14 1 2 1 . . . . . . . 1 1 5 . Matter Fused 12 | . . . . . . 7 . 1 . . . . . . . . . . 3 1 Heat Flow Errors 10 | . . . . . . 5 . . . . . . 1 . . 1 . . 2 1 Energy Discharges 10 | . . . . . . 6 1 . . . . . . 1 . 2 . . . . Parts Rejected 2 | . . . . . . 1 . . . . . . . . . . . . . 1 Data Loss (minor) 11 | . . . . . . 6 . 1 . . . . . . . . 1 1 2 . Data Loss (major) 8 | . . . . . . 2 1 . . . . . . . 1 . 1 1 2 . Misfires 1 | . . . . . . . . 1 . . . . . . . . . . . . Alerts 2 | . . . . . . 2 . . . . . . . . . . . . . . Misdirections 2 | . . . . . . 1 1 . . . . . . . . . . . . . Weapon Failures 2 | . . . . . . 1 . . . . . . . . . 1 . . . . Overload Shots . | . . . . . . . . . . . . . . . . . . . . . Overflow Damage 1297 | . . 3 . 7 33 611 . . . 34 411 96 . . . 102 . . . . Projectiles 36 | . . . . . 9 27 . . . . . . . . . . . . . . Explosions 186 | . . 3 . 7 . 41 . . . . . 96 . . . 39 . . . . Melee 1075 | . . . . . 24 543 . . . 34 411 . . . . 63 . . . . Knockbacks 6 | . . . . . . 4 . . . . 2 . . . . . . . . . Impact 5 | . . . . . . 3 . . . . 2 . . . . . . . . . Kinetic . | . . . . . . . . . . . . . . . . . . . . . Secondary 1 | . . . . . . 1 . . . . . . . . . . . . . . Self-Inflicted Damage 495 | . . 29 . 113 . 203 22 4 . . . . . . . 124 . . . . Shots 15 | . . 1 . 3 . 5 2 1 . . . . . . . 3 . . . . Rammed 1 | . . . . . 1 . . . . . . . . . . . . . . . Targets Rammed 1 | . . . . . 1 . . . . . . . . . . . . . . . Kicked . | . . . . . . . . . . . . . . . . . . . . . Crushed . | . . . . . . . . . . . . . . . . . . . . . Highest Temperature 378 | . 73 27 43 49 350 378 65 263 104 95 20 55 138 . 5 95 . . 173 86 Average Temperature 59 | . 24 8 11 13 92 89 21 101 36 47 10 27 58 . 3 55 . . 77 36 Received Heat Transfer 2090 | . 141 66 237 100 486 471 9 6 . 24 159 108 45 . 9 117 12 9 . 91 Effects 4 | . . . . . 4 . . . . . . . . . . . . . . . Energy Bleed 1 | . . . . . 1 . . . . . . . . . . . . . . . Interference 2 | . . . . . 2 . . . . . . . . . . . . . . . Short Circuit 1 | . . . . . 1 . . . . . . . . . . . . . . . Siege Activations . | . . . . . . . . . . . . . . . . . . . . . Robots Corrupted 1 | . . . . . . . 1 . . . . . . . . . . . . . Combat Hostiles . | . . . . . . . . . . . . . . . . . . . . . Parts Fried 14 | . . . . . . 7 2 . . . 4 . . . . 1 . . . . Impact Corruptions 25 | . . . . . . 11 . . . 2 12 . . . . . . . . . Robots Melted 1 | . . . . . 1 . . . . . . . . . . . . . . . Combat Hostiles 1 | . . . . . 1 . . . . . . . . . . . . . . . Parts Melted 5 | . . . . . 5 . . . . . . . . . . . . . . . Heat Transferred 2294 | . . . . . 2294 . . . . . . . . . . . . . . . Parts Sabotaged . | . . . . . . . . . . . . . . . . . . . . . Parts Stolen . | . . . . . . . . . . . . . . . . . . . . . Parts Stripped . | . . . . . . . . . . . . . . . . . . . . . Power Chain Reactions . | . . . . . . . . . . . . . . . . . . . . . Alert | -11 -10 -10 -9 -9 -8 -7 -7 -7 -7 -6 -6 -6 -6 -6 -5 -5 -5 -5 -5 -4 ------- Run | Yrd Mat Min Mat Min Mat Fac Low Low Zio Pro Fac Low Low Dat Pro Fac Upp Upp Zhi Pro Peak Influence 594 | . 152 264 186 210 477 594 . . . . 289 . . . . 383 . . . . Initial 178 | . . . 102 40 . 178 . . . . 12 . . . . 6 . . . . Average 188 | . 63 115 98 66 244 381 . . . . 76 . . . . 61 . . . . Maximum Alert Level 2 | . . 1 . 1 2 2 . . . . 1 . . . . 1 . . . . Low Security (%) 61 | 100 100 70 100 99 39 4 . . . . 92 . . . . 88 . . . . Level 1 27 | . . 29 . . 58 55 . . . . 7 . . . . 11 . . . . Level 2 10 | . . . . . 2 40 . . . . . . . . . . . . . . Level 3 . | . . . . . . . . . . . . . . . . . . . . . Level 4 . | . . . . . . . . . . . . . . . . . . . . . Level 5 . | . . . . . . . . . . . . . . . . . . . . . High Security . | . . . . . . . . . . . . . . . . . . . . . Max Security . | . . . . . . . . . . . . . . . . . . . . . Squads Dispatched 24 | . 1 . 2 . 5 10 . . . . 4 . . . . 2 . . . . Investigation 8 | . . . . . 1 4 . . . . 2 . . . . 1 . . . . Extermination 4 | . . . . . . 3 . . . . . . . . . 1 . . . . Reinforcement 11 | . 1 . 2 . 3 3 . . . . 2 . . . . . . . . . Assault . | . . . . . . . . . . . . . . . . . . . . . Garrison 1 | . . . . . 1 . . . . . . . . . . . . . . . Intercept . | . . . . . . . . . . . . . . . . . . . . . Searches Triggered . | . . . . . . . . . . . . . . . . . . . . . Data Miner Redirects 1 | . . . . . . . . . . . . . . . . 1 . . . . Construction Impeded 1 | . . . . . 1 . . . . . . . . . . . . . . . Haulers Reinforced 2 | . . . . . . 2 . . . . . . . . . . . . . . Active Scanning Responses . | . . . . . . . . . . . . . . . . . . . . . Cargo Convoy Interrupts . | . . . . . . . . . . . . . . . . . . . . . Stealth | -11 -10 -10 -9 -9 -8 -7 -7 -7 -7 -6 -6 -6 -6 -6 -5 -5 -5 -5 -5 -4 --------- Run | Yrd Mat Min Mat Min Mat Fac Low Low Zio Pro Fac Low Low Dat Pro Fac Upp Upp Zhi Pro Distress Signals 10 | . 1 . 1 . 2 1 . . . . 3 . . . . 2 . . . . Communications Jammed . | . . . . . . . . . . . . . . . . . . . . . Distress Signals . | . . . . . . . . . . . . . . . . . . . . . Times Spotted 272 | . 13 8 25 12 44 47 15 1 . 1 26 11 9 . 15 25 8 6 . 6 Peak Tracking Total 22 | . 4 4 4 4 4 5 14 1 . 1 5 7 8 . 16 22 9 5 . 6 Tactical Retreats 40 | . . . 3 . 3 10 4 . . . 7 4 1 . 2 1 2 3 . . Traps | -11 -10 -10 -9 -9 -8 -7 -7 -7 -7 -6 -6 -6 -6 -6 -5 -5 -5 -5 -5 -4 ------- Run | Yrd Mat Min Mat Min Mat Fac Low Low Zio Pro Fac Low Low Dat Pro Fac Upp Upp Zhi Pro Traps Triggered 15 | . . . 2 . 1 8 . . . . . . . . . 4 . . . . Indirectly . | . . . . . . . . . . . . . . . . . . . . . Trap Hack Attempts . | . . . . . . . . . . . . . . . . . . . . . Triggered . | . . . . . . . . . . . . . . . . . . . . . Disarmed . | . . . . . . . . . . . . . . . . . . . . . Reprogrammed . | . . . . . . . . . . . . . . . . . . . . . Reused . | . . . . . . . . . . . . . . . . . . . . . Traps Extracted . | . . . . . . . . . . . . . . . . . . . . . Installed . | . . . . . . . . . . . . . . . . . . . . . Triggered 3 | . . . . . . . . 2 . . . . 1 . . . . . . . Machines | -11 -10 -10 -9 -9 -8 -7 -7 -7 -7 -6 -6 -6 -6 -6 -5 -5 -5 -5 -5 -4 ---------- Run | Yrd Mat Min Mat Min Mat Fac Low Low Zio Pro Fac Low Low Dat Pro Fac Upp Upp Zhi Pro Machines Disabled 10 | . 1 1 2 . 1 1 . . . . . . . . . 3 . 1 . . Max in Single Turn 2 | . 1 1 1 . 1 1 . . . . . . . . . 2 . 1 . . Garrison Access 2 | . . . . . . . . . . . 2 . . . . . . . . . Machines Repaired . | . . . . . . . . . . . . . . . . . . . . . Machines Dismantled . | . . . . . . . . . . . . . . . . . . . . . Machines Sabotaged . | . . . . . . . . . . . . . . . . . . . . . Overloaded Fab Kills . | . . . . . . . . . . . . . . . . . . . . . Hacking | -11 -10 -10 -9 -9 -8 -7 -7 -7 -7 -6 -6 -6 -6 -6 -5 -5 -5 -5 -5 -4 --------- Run | Yrd Mat Min Mat Min Mat Fac Low Low Zio Pro Fac Low Low Dat Pro Fac Upp Upp Zhi Pro Machines Accessed 55 | . 2 1 3 . 2 14 1 . 1 . 14 . . 4 . 3 . 1 9 . Terminals 26 | . 2 1 2 . 2 8 . . . . 10 . . . . 1 . . . . Fabricators 5 | . . . . . . 4 . . . . 1 . . . . . . . . . Repair Stations 1 | . . . . . . . . . . . . . . . . 1 . . . . Recycling Units . | . . . . . . . . . . . . . . . . . . . . . Scanalyzers 4 | . . . 1 . . 2 . . . . 1 . . . . . . . . . Garrison Access 3 | . . . . . . . . . . . 2 . . . . 1 . . . . Total Hacks 185 | . 2 2 6 . 3 39 1 . 6 . 42 . . 27 . 8 . 1 48 . Successful 135 | . 2 1 5 . . 19 1 . 6 . 24 . . 27 . 1 . 1 48 . Failed 50 | . . 1 1 . 3 20 . . . . 18 . . . . 7 . . . . Catastrophic 10 | . . . . . 1 6 . . . . 3 . . . . . . . . . Database Lockouts . | . . . . . . . . . . . . . . . . . . . . . Manual 37 | . 1 . 2 . . 14 . . . . 18 . . . . 2 . . . . Terminals 64 | . 2 2 4 . 3 19 . . . . 32 . . . . 2 . . . . Fabricators 14 | . . . . . . 11 . . . . 3 . . . . . . . . . Repair Stations 3 | . . . . . . . . . . . . . . . . 3 . . . . Recycling Units . | . . . . . . . . . . . . . . . . . . . . . Scanalyzers 16 | . . . 2 . . 9 . . . . 5 . . . . . . . . . Garrison Access 5 | . . . . . . . . . . . 2 . . . . 3 . . . . Terminal Hacks 94 | . 1 1 1 . . 1 1 . 6 . 7 . . 27 . . . 1 48 . Record 48 | . . . . . . . . . . . . . . 11 . . . 1 36 . Part Schematic 21 | . . . . . . . . . 6 . . . . 11 . . . . 4 . Robot Schematic 2 | . . . . . . . . . . . . . . 2 . . . . . . Robot Analysis 4 | . . . . . . . . . . . . . . . . . . . 4 . Prototype ID Bank 7 | . . . . . . . . . . . . . . 3 . . . . 4 . Open Door 1 | . . . . . . . 1 . . . . . . . . . . . . . Open DSF 1 | . . . . . . . . . . . 1 . . . . . . . . . Branch Access Points 1 | . . . . . . . . . . . 1 . . . . . . . . . Terminal Index 1 | . . . . . . . . . . . 1 . . . . . . . . . Scanalyzer Index 1 | . . . . . . . . . . . 1 . . . . . . . . . Unreport Threat 5 | . 1 . 1 . . 1 . . . . 2 . . . . . . . . . Patrol Status 1 | . . 1 . . . . . . . . . . . . . . . . . . Hauler Manifests 1 | . . . . . . . . . . . 1 . . . . . . . . . Fabricator Hacks 9 | . . . . . . 7 . . . . 2 . . . . . . . . . Load Schematic 5 | . . . . . . 4 . . . . 1 . . . . . . . . . Build 4 | . . . . . . 3 . . . . 1 . . . . . . . . . Repair Station Hacks 1 | . . . . . . . . . . . . . . . . 1 . . . . Scan Component 1 | . . . . . . . . . . . . . . . . 1 . . . . Recycling Unit Hacks . | . . . . . . . . . . . . . . . . . . . . . Scanalyzer 12 | . . . 2 . . 6 . . . . 4 . . . . . . . . . Insert Component 6 | . . . 1 . . 3 . . . . 2 . . . . . . . . . Analyze 6 | . . . 1 . . 3 . . . . 2 . . . . . . . . . Garrison Access Hacks 2 | . . . . . . . . . . . 2 . . . . . . . . . Seal Access 2 | . . . . . . . . . . . 2 . . . . . . . . . Unauthorized Hacks 17 | . 1 . 2 . . 5 . . . . 9 . . . . . . . . . Terminals 17 | . 1 . 2 . . 5 . . . . 9 . . . . . . . . . Botnet 17 | . 1 . 2 . . 5 . . . . 9 . . . . . . . . . Fabricators . | . . . . . . . . . . . . . . . . . . . . . Repair Stations . | . . . . . . . . . . . . . . . . . . . . . Recycling Units . | . . . . . . . . . . . . . . . . . . . . . Scanalyzers . | . . . . . . . . . . . . . . . . . . . . . Garrison Access . | . . . . . . . . . . . . . . . . . . . . . Data Cores Recovered 3 | . . . . . . 3 . . . . . . . . . . . . . . Used . | . . . . . . . . . . . . . . . . . . . . . Hacking Detections 31 | . 2 . 2 . 2 13 . . . . 10 . . . . 2 . . . . Full Trace Events 8 | . . . 1 . . 4 . . . . 2 . . . . 1 . . . . Feedback Events 1 | . . . . . . . . . . . . . . . . 1 . . . . Hackware Fried 1 | . . . . . . . . . . . . . . . . 1 . . . . Feedback Blocked . | . . . . . . . . . . . . . . . . . . . . . Robot Schematics Acquired 5 | . . . . . . . . . 3 . . . . 2 . . . . . . Robots Built . | . . . . . . . . . . . . . . . . . . . . . Authchips . | . . . . . . . . . . . . . . . . . . . . . Time . | . . . . . . . . . . . . . . . . . . . . . Total Robot Build Rating . | . . . . . . . . . . . . . . . . . . . . . Part Schematics Acquired 42 | . . . 1 . . 3 . . 21 . 2 . . 11 . . . . 4 . Parts Built 5 | . . . . . . 3 . . . . 2 . . . . . . . . . Authchips . | . . . . . . . . . . . . . . . . . . . . . Time 343 | . . . . . . 248 . . . . 95 . . . . . . . . . Total Part Build Rating 24 | . . . . . . 14 . . . . 10 . . . . . . . . . Parts Repaired . | . . . . . . . . . . . . . . . . . . . . . Time . | . . . . . . . . . . . . . . . . . . . . . Parts Recycled . | . . . . . . . . . . . . . . . . . . . . . Recycled Matter . | . . . . . . . . . . . . . . . . . . . . . Retrieved Matter . | . . . . . . . . . . . . . . . . . . . . . Retrieved Components . | . . . . . . . . . . . . . . . . . . . . . Parts Scanalyzed 6 | . . . 1 . . 3 . . . . 2 . . . . . . . . . Part Schematics Acquired 6 | . . . 1 . . 3 . . . . 2 . . . . . . . . . Parts Damaged . | . . . . . . . . . . . . . . . . . . . . . Bothacking | -11 -10 -10 -9 -9 -8 -7 -7 -7 -7 -6 -6 -6 -6 -6 -5 -5 -5 -5 -5 -4 ------------ Run | Yrd Mat Min Mat Min Mat Fac Low Low Zio Pro Fac Low Low Dat Pro Fac Upp Upp Zhi Pro Used RIF Installer . | . . . . . . . . . . . . . . . . . . . . . Robots Hacked . | . . . . . . . . . . . . . . . . . . . . . Non-combat . | . . . . . . . . . . . . . . . . . . . . . Combat . | . . . . . . . . . . . . . . . . . . . . . Robot Hacks Applied . | . . . . . . . . . . . . . . . . . . . . . Relay Couplers Released . | . . . . . . . . . . . . . . . . . . . . . Fabnet Peak Effective % . | . . . . . . . . . . . . . . . . . . . . . Robots Rewired . | . . . . . . . . . . . . . . . . . . . . . Allies Hacked . | . . . . . . . . . . . . . . . . . . . . . Hacks Repelled . | . . . . . . . . . . . . . . . . . . . . . Allies | -11 -10 -10 -9 -9 -8 -7 -7 -7 -7 -6 -6 -6 -6 -6 -5 -5 -5 -5 -5 -4 -------- Run | Yrd Mat Min Mat Min Mat Fac Low Low Zio Pro Fac Low Low Dat Pro Fac Upp Upp Zhi Pro Total Allies 5 | . . . . 4 . . . . . . . . . . 1 . . . . . Largest Group 4 | . . . . 4 3 . . . . . . . . . . . . . . . Highest-Rated Group 71 | . . . . 71 40 . . . . . . . . . . . . . . . Highest-Rated Ally 31 | . . . . 31 16 . . . . . . . . . . . . . . . Total Orders . | . . . . . . . . . . . . . . . . . . . . . Ally Attacks 68 | . . . . . 67 . . . . . . . . . 1 . . . . . Total Damage 781 | . . . . . 733 . . . . . . . . . 48 . . . . . Kills 10 | . . . . . 10 . . . . . . . . . . . . . . . Allies Corrupted . | . . . . . . . . . . . . . . . . . . . . . Allies Melted . | . . . . . . . . . . . . . . . . . . . . . Intel | -11 -10 -10 -9 -9 -8 -7 -7 -7 -7 -6 -6 -6 -6 -6 -5 -5 -5 -5 -5 -4 ------- Run | Yrd Mat Min Mat Min Mat Fac Low Low Zio Pro Fac Low Low Dat Pro Fac Upp Upp Zhi Pro Robot Analysis Total 4 | . . . . . . . . . . . . . . . . . . . 4 . Derelict Logs Recovered 13 | . . 1 . 1 . . . 1 . 3 . 1 2 . 1 . 1 1 . 1 Drone Launches . | . . . . . . . . . . . . . . . . . . . . . Drone Recoveries . | . . . . . . . . . . . . . . . . . . . . . Exploration | -11 -10 -10 -9 -9 -8 -7 -7 -7 -7 -6 -6 -6 -6 -6 -5 -5 -5 -5 -5 -4 ------------- Run | Yrd Mat Min Mat Min Mat Fac Low Low Zio Pro Fac Low Low Dat Pro Fac Upp Upp Zhi Pro Turns Passed 10449 | 66 418 363 1848 933 1701 2036 96 155 299 158 567 176 202 23 56 400 150 108 615 79 Spaces Moved 12738 | 48 252 265 972 514 745 3428 324 550 766 449 1258 591 750 90 219 479 373 258 244 163 Core 11 | 5 . . . . . 4 . . . . . . . . . . . . . 2 Treads 1622 | . . . 363 514 745 . . . . . . . . . . . . . . . Legs 851 | 43 252 265 291 . . . . . . . . . . . . . . . . . Wheels 318 | . . . 318 . . . . . . . . . . . . . . . . . Hover 2412 | . . . . . . 2412 . . . . . . . . . . . . . . Flight 7524 | . . . . . . 1012 324 550 766 449 1258 591 750 90 219 479 373 258 244 161 Fastest Speed 23 | 50 120 120 105 160 160 23 23 23 23 23 23 25 25 25 25 28 40 40 40 40 Average Speed 63 | 112 120 120 151 160 186 37 23 23 23 23 25 25 25 25 25 72 40 40 247 40 Slowest Speed 450 | 120 120 120 190 160 240 450 23 23 23 23 29 94 25 25 25 164 40 40 430 50 Overloaded Moves . | . . . . . . . . . . . . . . . . . . . . . Propulsion Burnouts . | . . . . . . . . . . . . . . . . . . . . . Robots Hopped 25 | . . . . . . 2 2 . . . 17 . 2 . . 2 . . . . Cave-ins Triggered . | . . . . . . . . . . . . . . . . . . . . . Teleports 1 | . . . . . . . . . . . . . . . . . . . 1 . Exploration Rate (%) 59 | 4 46 58 57 99 66 67 65 79 82 75 42 72 90 75 57 19 58 55 62 22 Regions Visited 20 Branch Regions 14 Pre-discovered Areas 7 | . . . . 1 . . . 1 . . . . . 1 . . . . 3 1 Known Exits Taken 11 | . . . . . . . . . 1 1 1 1 1 1 1 1 1 1 1 . Unknown Exits Taken 9 | 1 1 1 1 1 1 1 1 1 . . . . . . . . . . . . Scrap Searched 26 | . . 3 . 1 . . 1 4 4 1 . 3 3 . . . 3 . . 3 Spaces Dug 57 | . . 6 . . . 32 . . . . 18 . . . . 1 . . . . Terrain Destroyed 300 | . 22 47 . 34 . 67 . . . . 18 50 . . . 62 . . . . Melee 51 | . . . . . . 32 . . . . 18 . . . . 1 . . . . Projectile . | . . . . . . . . . . . . . . . . . . . . . AOE 249 | . 22 47 . 34 . 35 . . . . . 50 . . . 61 . . . . Terrain Rammed . | . . . . . . . . . . . . . . . . . . . . . Walls Destroyed . | . . . . . . . . . . . . . . . . . . . . . Machines Disabled . | . . . . . . . . . . . . . . . . . . . . . Actions | -11 -10 -10 -9 -9 -8 -7 -7 -7 -7 -6 -6 -6 -6 -6 -5 -5 -5 -5 -5 -4 --------- Run | Yrd Mat Min Mat Min Mat Fac Low Low Zio Pro Fac Low Low Dat Pro Fac Upp Upp Zhi Pro Total 14345 | 60 317 285 1199 563 930 4011 339 578 889 494 1411 609 761 89 219 520 373 261 258 179 Wait 737 | . 10 . 56 10 53 304 12 23 116 42 97 . 10 . . 4 . . . . Move 12672 | 47 251 264 971 513 744 3423 319 549 765 448 1225 590 746 89 218 475 372 257 243 163 Hop 21 | . . . . . . 2 2 . . . 15 . 1 . . 1 . . . . Pick Up 179 | 7 12 3 38 3 20 48 1 1 4 . 11 3 2 . . 12 . 1 6 7 Fast Attach . | . . . . . . . . . . . . . . . . . . . . . Attach 138 | 6 5 1 21 2 10 45 . 1 2 . 8 8 2 . . 15 1 1 7 3 Detach 13 | . . . . . . 5 1 . . . 3 2 . . 1 . . 1 . . Swap 32 | . 4 4 5 2 2 3 2 1 . . 9 . . . . . . . . . Drop 88 | . 4 . 19 2 15 24 . 3 2 . 6 . . . . 5 . . 2 6 Fire 263 | . 31 13 89 31 58 26 2 . . . . 6 . . . 6 . 1 . . Melee 149 | . . . . . 27 79 . . . 4 37 . . . . 2 . . . . Ram . | . . . . . . . . . . . . . . . . . . . . . Kick . | . . . . . . . . . . . . . . . . . . . . . Crush 1 | . . . . . 1 . . . . . . . . . . . . . . . Escape Stasis 52 | . . . . . . 52 . . . . . . . . . . . . . . Rewire . | . . . . . . . . . . . . . . . . . . . . . Trap . | . . . . . . . . . . . . . . . . . . . . . Miscellaneous . | . . . . . . . . . . . . . . . . . . . . . Route ------- -11/Scrapyard -10/Materials (discovered 2 exits: *Mat / *Min) -10/Mines (discovered 2 exits: *Mat x2) -9/Materials (discovered 3 exits: *Mat / [*Min x2]) -9/Mines (discovered 2 exits: *Mat x2) -8/Materials (discovered 2 exits: *Fac x2) -7/Factory (discovered 3 exits: *Fac x2 / *Low) -7/Lower Caves -7/Lower Caves (discovered 2 exits: *Fac / *Zio) -7/Zion -6/Proximity Caves -6/Factory (discovered 4 exits: Fac x2 / *Low x2) -6/Lower Caves -6/Lower Caves (discovered 2 exits: *Fac / *Dat) -6/Data Miner -5/Proximity Caves -5/Factory (discovered 2 exits: [*Fac] / *Upp) -5/Upper Caves -5/Upper Caves -5/Zhirov -4/Proximity Caves History --------- Turn | Location | Event 4 | -11/Scrapyard | Discovered new exit (range 16) 67 | -11/Scrapyard | Entered Materials 307 | -10/Materials | Discovered new exit (range 15) 325 | -10/Materials | Build established: Mutant 393 | -10/Materials | Discovered new exit (range 15) 485 | -10/Materials | Entered Mines 535 | -10/Mines | Discovered new exit (range 6) 544 | -10/Mines | Learned Materials stockpile data 725 | -10/Mines | Found a damaged Exp. Sensor Array with a note attached 728 | -10/Mines | Found Prototype Device 744 | -10/Mines | Discovered new exit (range 9) 806 | -10/Mines | Assembled infested the area 811 | -10/Mines | Assisted by a Guerilla fighting off Assembled 848 | -10/Mines | Entered Materials 848 | -9/Materials | Evolved 2 slots: Propulsion x1, Utility x1 1017 | -9/Materials | Identified Exp. Sensor Array 1672 | -9/Materials | Discovered new exit (range 16) 1692 | -9/Materials | Discovered new exit (range 16) 1862 | -9/Materials | Discovered new exit (range 12) 2696 | -9/Materials | Entered Mines 2899 | -9/Mines | Received a Rocket Launcher from a helpful Derelict 3006 | -9/Mines | Excavation squad dispatched 3006 | -9/Mines | A large section of the Mines collapsed 3154 | -9/Mines | Discovered new exit (range 10) 3204 | -9/Mines | Learned location of Zion (-7) 3234 | -9/Mines | A weapon hastily lodged in a ceiling crevice suddenly fell to the ground 3356 | -9/Mines | Discovered new exit (range 9) 3483 | -9/Mines | Received a Mining Laser from a helpful Derelict 3549 | -9/Mines | Assisted by bots powering up and referring to "LRC-V3" 3629 | -9/Mines | Entered Materials 3629 | -8/Materials | Accompanied by 3 allies 3629 | -8/Materials | Evolved 2 slots: Propulsion x1, Utility x1 4424 | -8/Materials | Garrison activated, responded to threat 4556 | -8/Materials | Discovered new exit (range 16) 4924 | -8/Materials | Discovered new exit (range 10) 5330 | -8/Materials | Entered Factory 5330 | -7/Factory | Evolved 2 slots: Propulsion x1, Utility x1 5483 | -7/Factory | Lost 3 parts (1p2u) 5509 | -7/Factory | Discovered new exit (range 15) 5829 | -7/Factory | Fabricated Hacking Suite? 6311 | -7/Factory | Fabricated Hacking Suite? 6430 | -7/Factory | Lost 3 parts (1p1n1w) 6525 | -7/Factory | Identified exit to Factory 6670 | -7/Factory | System corruption reached 10% 6700 | -7/Factory | Lost 7 parts (4n2u1w) 6812 | -7/Factory | Lost 3 parts (1p2u) 6876 | -7/Factory | Fabricated Exp. Sensor Array? 7145 | -7/Factory | Core integrity fell below 50% 7212 | -7/Factory | Discovered exit to Factory (range 7) 7332 | -7/Factory | Discovered new exit (range 5) 7366 | -7/Factory | Entered Lower Caves 7371 | -7/Lower Caves | Attracted the attention of an 0b10 outpost 7453 | -7/Lower Caves | Discovered new exit (range 13) 7462 | -7/Lower Caves | Entered another Lower Caves area 7463 | -7/Lower Caves | Discovered exit to Factory (range 13) 7536 | -7/Lower Caves | Encountered a Warlord checkpoint 7563 | -7/Lower Caves | Attracted the attention of an 0b10 checkpoint 7611 | -7/Lower Caves | Discovered new exit (range 7) 7617 | -7/Lower Caves | Entered Zion 7632 | -7/Zion | Given the Hacking Drone Bay 7633 | -7/Zion | Found Prototype Device 7634 | -7/Zion | Discovered new exit (range 12) 7652 | -7/Zion | System corruption cleaned by Quarantine Array 7912 | -7/Zion | Build established: Hacker-Sprinter 7916 | -7/Zion | Identified exit to Proximity Caves 7916 | -7/Zion | Entered Proximity Caves 7937 | -6/Proximity Caves | Spotted B-75 Beast 8000 | -6/Proximity Caves | Learned Factory terminal intel 8008 | -6/Proximity Caves | Attracted the attention of an 0b10 checkpoint 8071 | -6/Proximity Caves | Learned location of 2 exits from Factory 8072 | -6/Proximity Caves | Discovered exit to Factory (range 4) 8074 | -6/Proximity Caves | Entered Factory 8074 | -6/Factory | Evolved 2 slots: Power x1, Utility x1 8075 | -6/Factory | Identified exit to Lower Caves 8076 | -6/Factory | Identified exit to Factory 8077 | -6/Factory | Loaded intel: 26 terminal locations 8087 | -6/Factory | Identified Hacking Drone Bay 8196 | -6/Factory | Lost 4 parts (2p2u) 8588 | -6/Factory | Fabricated Adv. Signal Interpreter? 8641 | -6/Factory | Entered Lower Caves 8713 | -6/Lower Caves | Attracted the attention of an 0b10 outpost 8756 | -6/Lower Caves | Lost 4 parts (1p1n1u1w) 8775 | -6/Lower Caves | Discovered new exit (range 15) 8778 | -6/Lower Caves | Identified exit to Lower Caves 8817 | -6/Lower Caves | Entered another Lower Caves area 8845 | -6/Lower Caves | Learned Factory non-interactive machine intel 8862 | -6/Lower Caves | Discovered exit to Factory (range 9) 8915 | -6/Lower Caves | Learned 8 Factory zone layouts 8964 | -6/Lower Caves | Ambushed by research squad 8968 | -6/Lower Caves | Core integrity fell below 50% 9016 | -6/Lower Caves | Discovered new exit (range 12) 9019 | -6/Lower Caves | Identified exit to Data Miner 9019 | -6/Lower Caves | Entered Data Miner 9019 | -6/Data Miner | Discovered new exit (range 6) 9021 | -6/Data Miner | Identified exit to Proximity Caves 9024 | -6/Data Miner | Met Data Miner 9032 | -6/Data Miner | Learned location of Section 7 (-2) 9032 | -6/Data Miner | Acquired the access code to Warlord's prototype stash 9036 | -6/Data Miner | Received God Mode back door access code from Data Miner 9042 | -6/Data Miner | Entered Proximity Caves 9044 | -5/Proximity Caves | Spotted B-75 Beast 9095 | -5/Proximity Caves | Discovered exit to Factory (range 8) 9098 | -5/Proximity Caves | Entered Factory 9098 | -5/Factory | Evolved 2 slots: Propulsion x1, Utility x1 9099 | -5/Factory | Identified exit to Upper Caves 9101 | -5/Factory | Loaded intel: 168 non-interactive machine locations 9338 | -5/Factory | Discovered new exit (range 9) 9404 | -5/Factory | Lost 3 parts (1p1n1w) 9444 | -5/Factory | Hacking Suite fried by hacking feedback 9461 | -5/Factory | Core integrity fell below 50% 9465 | -5/Factory | Incoming investigation squad redirected 9475 | -5/Factory | Lost 6 parts (1p2n2u1w) 9498 | -5/Factory | Entered Upper Caves 9566 | -5/Upper Caves | Attracted the attention of an 0b10 outpost 9602 | -5/Upper Caves | Attracted the attention of an 0b10 checkpoint 9644 | -5/Upper Caves | Encountered a Warlord checkpoint 9644 | -5/Upper Caves | Discovered new exit (range 13) 9647 | -5/Upper Caves | Learned Factory trap positions 9648 | -5/Upper Caves | Identified exit to Upper Caves 9648 | -5/Upper Caves | Entered another Upper Caves area 9656 | -5/Upper Caves | Build established: Hacker-Mutant 9663 | -5/Upper Caves | Encountered a Warlord checkpoint 9727 | -5/Upper Caves | Discovered new exit (range 15) 9729 | -5/Upper Caves | Learned location of 1 exit from Factory 9734 | -5/Upper Caves | Identified exit to Zhirov 9741 | -5/Upper Caves | Found Alien Artifact 9756 | -5/Upper Caves | Entered Zhirov 9756 | -5/Zhirov | Discovered new exit (range 3) 9757 | -5/Zhirov | Identified exit to Proximity Caves 9764 | -5/Zhirov | Met Zhirov 9778 | -5/Zhirov | Zhirov requested help retrieving the SGEMP Prototype 9778 | -5/Zhirov | Identified Dimensional Node Initializer 9778 | -5/Zhirov | Initialized slip node 9785 | -5/Zhirov | Learned location of Quarantine (-2) 9785 | -5/Zhirov | Learned location of Testing (-3) 9785 | -5/Zhirov | Learned location of Command (-1) 9915 | -5/Zhirov | Found Alien Artifact 9916 | -5/Zhirov | Identified Integrated Reactor 9916 | -5/Zhirov | Installed Integrated Reactor, increased core energy generation (+10) 9965 | -5/Zhirov | Found Alien Artifact 9966 | -5/Zhirov | Identified Transdimensional Reconstructor 9966 | -5/Zhirov | Warped through subspace to slip node 10371 | -5/Zhirov | Entered Proximity Caves 10436 | -4/Proximity Caves | Core integrity fell below 20% 10437 | -4/Proximity Caves | Spotted B-86 Titan 10450 | -4/Proximity Caves | Destroyed by P-70 Sage with High-powered Shock Rifle Last Messages --------------- 10390_ Acquired 34 matter. 10419_ Searching scrap... 10419_ Found Imp. Arc Projector. 10419_ Found Imp. Transmission Jammer. 10419_ Found Hyp. Coil Gun. 10419_ Found 20 Matter. 10420_ Acquired 20 matter. 10421_ Acquired Imp. Transmission Jammer. 10428_ Imp. Signal Interpreter destroyed. 10430_ System corrupted: Biomechanical Wings rejected. 10430_ Dropped Imp. Transmission Jammer. 10431_ Acquired Biomechanical Wings. 10432_ Critical hit (Burn: +50). 10435_ ECM Suite destroyed. 10438_ Slug penetrates Earth. 10441_ Knocked back. 10441_ Penetrated by Slug. 10447_ System corrupted: Heat flow error (+126). [Achievement: This Is Interesting...] Map ----- +----------------------------------------------------+ | #?# ##????????????????????????????????? | | ?# #????????????????????????????????? | | # ##????????????????????????????????? | | ##?????????????????????????????????? | | #### ## ##??????????????????????????????????? | | ???# ## #???????????????????????????????????? | | ???# ?###%#???????????????????????????????????? | | #??# ????# #???????????????????????????????????? | | ## ?????# #???????????????????????????????????? | | ??????# #???????????????????????????????????? | | ????????# #???????????????????????????????????? | | ????????# ####????????????????????????????????? | | ????????# #????????????????????????????????? | | ########### #????????????????????????????????? | | #### #????????????????????????????????? | | # #????????????????????????????????? | | # #????????????????????????????????? | | ?# ##???????????????????????????????? | | ??# ##??????????????????????????????? | | #### ### ##?????????????????????????????? | | ##?## ##????????????????????????????? | | #???## #####????????????????????????? | | #### ##????##### #????????????????????????? | | ???######?????????# ## #????????????????????????? | | ??????????????????#### ######???????????????????? | | ?????????????????????# @ #???????????????????? | | ?????????????????????# pp #???????????????????? | | ?????????????????????###### #???????????????????? | | ??????????????????????????? #???????????????????? | | ???????????????????????????? #???????????????????? | | ????????????????????????????? ???????????????????? | | ?????????????????????????????? ??????????????????? | | ?????????????????????????????? ?????????????????? | | ??????????????????????????????? ????????????????? | | ???????????????????????????????? ???????????????? | | ????????????????????????????????? #??????????????? | | ????????????????????????????????? #??????????????? | | ??????????????????????????????????#??????????????? | | ?????????????????????????????????????????????????? | | ?????????????????????????????????????????????????? | | ?????????????????????????????????????????????????? | | ?????????????????????????????????????????????????? | | ?????????????????????????????????????????????????? | | ?????????????????????????????????????????????????? | | ?????????????????????????????????????????????????? | | ?????????????????????????????????????????????????? | | ?????????????????????????????????????????????????? | | ?????????????????????????????????????????????????? | | ?????????????????????????????????????????????????? | | ?????????????????????????????????????????????????? | +----------------------------------------------------+ Best States ------------- Heat Dissipation 45 Energy Generation 35 Energy Capacity 600 Matter Stores 300 Matter Capacity 300 Sight Range 16 Robot Scan Range 20 Terrain Scan Density 10 ECM Strength 1 Additional Mass Support 9 Armor Coverage 450 Propulsion Shielding 66 Utility Shielding 66 Evasion (%) 72 Targeting Accuracy 5 Recoil Reduction 4 Offensive Hacking 40 Defensive Hacking 10 Authchip Count 1 Item Schematics ----------------- Exp. Sensor Array | -9/Materials | Scanalyzed Hacking Suite | -7/Factory | Scanalyzed System Restoration Module | -7/Factory | Scanalyzed Imp. Cesium-ion Thruster | -7/Factory | Scanalyzed Riot Gun | -7/Zion | Free Battle Cannon | -7/Zion | Free Hvy. Riot Gun | -7/Zion | Free Slug Cannon | -7/Zion | Free Flamer | -7/Zion | Free Enh. Flamer | -7/Zion | Free Imp. Titanium Leg | -7/Zion | Archive Hyp. Gauss Rifle | -7/Zion | Archive Core Analyzer | -7/Zion | Archive Adv. Signal Interpreter | -7/Zion | Archive Imp. Field Recycling Unit | -7/Zion | Archive Mak. Transmission Jammer | -7/Zion | Archive Mak. Shrapnel Gun | -7/Zion | Archive Adv. Hacking Suite | -7/Zion | Archive Imp. Shock Absorption System | -7/Zion | Archive Energy Filter | -7/Zion | Archive Drone Bay | -7/Zion | Archive Hvy. Battle Rifle | -7/Zion | Archive Angular Momentum Engine | -7/Zion | Archive Plasma Flamer | -7/Zion | Archive Gauss Cannon | -7/Zion | Archive Lrn. Missile Launcher | -6/Factory | Scanalyzed Cloaking Device | -6/Factory | Scanalyzed Combat Drone Bay | -6/Data Miner | Free Lgt. Regenerative Plating | -6/Data Miner | Free Enh. Flexi-carbon Leg | -6/Data Miner | Free Imp. Energy Well | -6/Data Miner | Free Neutron Cannon | -6/Data Miner | Free Myomer Leg | -6/Data Miner | Free Quantum Capacitor | -6/Data Miner | Free Hvy. Gauss Cannon | -6/Data Miner | Free Arm. Medium Treads | -6/Data Miner | Free Imp. System Guard | -6/Data Miner | Free Adv. Heavy Treads | -6/Data Miner | Free Assault Drone Bay | -5/Zhirov | Free Exp. Heat Sink | -5/Zhirov | Free Exp. Optical Array | -5/Zhirov | Free Imp. Arc Thrower | -5/Zhirov | Free Robot Schematics ------------------ K-01 Serf | -7/Zion | Archive D-53 Grenadier | -7/Zion | Archive W-25 Informer | -7/Zion | Archive R-10 Processor | -6/Data Miner | Free E-15 Imp | -6/Data Miner | Free Fabricated ------------ Hacking Suite | x1 | -7/Factory Hacking Suite | x1 | -7/Factory Exp. Sensor Array | x1 | -7/Factory Adv. Signal Interpreter | x2 | -6/Factory Alien Tech Used ----------------- Dimensional Node Initializer Integrated Reactor Transdimensional Reconstructor Achievements -------------- Adventurer Alien Tech Armchair Analyst Explorer Knowing Is Half The Battle Subspace Traveler The Science Guy This Is Interesting... Universal Adapter Challenges ------------ None Game ------ Seed PlasmaPointPropulsion Manual? 0 Play Time 02:58:00 Cumulative 44.4 hours Start 2024.04.05 @ 19:50:33 End 2024.04.06 @ 00:34:46 Sessions 3 Manual Loads 0 Difficulty Rogue Special Mode None Game No. 59 Rogue 59 Adventurer 0 Explorer 0 Win Type - Total 1 Types 1/0/0/0/0/0/0/0/0 Lore% 28 Gallery% 29 Achievement% 31 Wizard Run 0 Options --------- Layout 1 ASCII 0 Keyboard 0 Movement Mouse Keybinds 0 Fullscreen 2 Font 32/Smallcaps Map View 50x40 Zoom Use 0% Tactical HUD 1 Map Filters NONE Filters NONE Steam 1 RUN: 20d10770-87c9-4410-89c2-d7e1a62ad23f